{"text_format":"1","workbook":"xlsx","n_sheets":2,"sheets":["立順計画","エントリーデータ"],"not_rendered":{"charts":0,"images":0,"macros":1,"external_links":0,"defined_names":4,"comments":0,"pivot_tables":0},"unopened":[],"bounds":{"document_bytes":16777216,"sheet_cells":100000,"rows_first":2000,"rows_last":500,"rows_between":2000,"halvings":0,"cell_chars":16384,"cell_head_chars":4096},"cells_cut":0,"cells_raw":0,"read":"whole","date_system":"1900"}

{"sheet":"立順計画","index":0,"n_rows":107,"n_cols":26,"rows_kept":107,"cut":false,"hidden":false,"merged":[]}
[null,"iaaCAL  的＆立数設定ツール",null,null,"試合日 ","2024-01-01",{"$f":"IF(C4<>U1,\"注意！：立順計画が重複しています　\"&V1,\"\")","v":""},null,null,null,null,null,null,null,null,null,null,null,null,null,{"$f":"SUM(U2:U107)","v":16},{"$f":"INDEX(T2:T38,MATCH(MAX(U2:U38),U2:U38,0),0)","v":"1A"}]
[null,"立数",3,"１的ごとの最大立数","試合名称",null,"Ichihara Archery ODA",null,null,null,null,"減立数",{"$f":"IF(M3=0,0,C2-M3)","v":2},null,null,null,null,null,null,{"$f":"エントリーデータ!C2&エントリーデータ!D2","v":"1A"},{"$f":"IF(T2=\"\",0,COUNTIF($T$2:$T$38,T2))","v":1}]
[null,"最初の的番号",1,"＊他リーグと通番的番の\n   際に指定(通常は1)","競技種（リーグなど）",null,null,null,null,null,null,"余り",{"$f":"MOD(C4,C2)","v":1},null,null,null,null,null,null,{"$f":"エントリーデータ!C3&エントリーデータ!D3","v":"1B"},{"$f":"IF(T3=\"\",0,COUNTIF($T$2:$T$38,T3))","v":1}]
[null,"参加人数",{"$f":"COUNTIF(エントリーデータ!E:E,\"=1\")","v":16},null,null,null,null,null,null,null,null,"前的(立数、的数）",{"$f":"C2","v":3},{"$f":"C5-M2","v":4},null,null,null,null,null,{"$f":"エントリーデータ!C4&エントリーデータ!D4","v":"1C"},1]
[null,"必要的数",{"$f":"INT(C4/$C$2+0.999)","v":6},null,null,null,null,null,null,null,null,"減的(立数、的数）",{"$f":"M4-1","v":2},{"$f":"M2","v":2},null,null,null,null,null,{"$f":"エントリーデータ!C5&エントリーデータ!D5","v":"2A"},1]
[null,null,null,null,null,null,null,null,null,null,null,null,null,null,null,null,null,null,null,{"$f":"エントリーデータ!C6&エントリーデータ!D6","v":"2B"},1]
[null,"的番","立順","A","B","C","D","E",null,null,null,null,null,null,null,null,null,null,null,{"$f":"エントリーデータ!C7&エントリーデータ!D7","v":"2C"},1]
[1,{"$f":"C3","v":1},{"$f":"IF(A8<=$N$4,$M$4,IF(AND(A8>$N$4,A8<=$N$4+$N$5),$M$5,0))","v":3},"oda1","oda2","oda3",null,null,null,null,null,null,null,null,null,null,null,null,null,{"$f":"エントリーデータ!C8&エントリーデータ!D8","v":"3A"},1,null,null,null,null,"小田昭昌24"]
[2,{"$f":"B8+1","v":2},{"$f":"IF(A9<=$N$4,$M$4,IF(AND(A9>$N$4,A9<=$N$4+$N$5),$M$5,0))","v":3},"oda4","oda5","oda6",null,null,null,null,null,null,null,null,null,null,null,null,null,{"$f":"エントリーデータ!C9&エントリーデータ!D9","v":"3B"},1]
[3,{"$f":"B9+1","v":3},{"$f":"IF(A10<=$N$4,$M$4,IF(AND(A10>$N$4,A10<=$N$4+$N$5),$M$5,0))","v":3},"oda7","oda8","oda9",null,null,null,null,null,null,null,null,null,null,null,null,null,{"$f":"エントリーデータ!C10&エントリーデータ!D10","v":"3C"},1]
[4,4,3,"oda10","oda11","oda12",null,null,null,null,null,null,null,null,null,null,null,null,null,{"$f":"エントリーデータ!C11&エントリーデータ!D11","v":"4A"},1]
[5,5,2,"oda13","oda14",null,null,null,null,null,null,null,null,null,null,null,null,null,null,{"$f":"エントリーデータ!C12&エントリーデータ!D12","v":"4B"},1]
[6,6,2,"oda15","oda16",null,null,null,null,null,null,null,null,null,null,null,null,null,null,{"$f":"エントリーデータ!C13&エントリーデータ!D13","v":"4C"},1]
[7,7,0,null,null,null,null,null,null,null,null,null,null,null,null,null,null,null,null,{"$f":"エントリーデータ!C14&エントリーデータ!D14","v":"5A"},1]
[8,8,0,null,null,null,null,null,null,null,null,null,null,null,null,null,null,null,null,{"$f":"エントリーデータ!C15&エントリーデータ!D15","v":"5B"},1]
[9,9,0,null,null,null,null,null,null,null,null,null,null,null,null,null,null,null,null,{"$f":"エントリーデータ!C16&エントリーデータ!D16","v":"6A"},1]
[10,10,0,null,null,null,null,null,null,null,null,null,null,null,null,null,null,null,null,{"$f":"エントリーデータ!C17&エントリーデータ!D17","v":"6B"},1]
[11,11,0,null,null,null,null,null,null,null,null,null,null,null,null,null,null,null,null,{"$f":"エントリーデータ!C18&エントリーデータ!D18","v":""},0]
[12,12,0,null,null,null,null,null,null,null,null,null,null,null,null,null,null,null,null,{"$f":"エントリーデータ!C19&エントリーデータ!D19","v":""},0]
[13,13,0,null,null,null,null,null,null,null,null,null,null,null,null,null,null,null,null,{"$f":"エントリーデータ!C20&エントリーデータ!D20","v":""},0]
[14,14,0,null,null,null,null,null,null,null,null,null,null,null,null,null,null,null,null,{"$f":"エントリーデータ!C21&エントリーデータ!D21","v":""},0]
[15,15,0,null,null,null,null,null,null,null,null,null,null,null,null,null,null,null,null,{"$f":"エントリーデータ!C22&エントリーデータ!D22","v":""},0]
[16,16,0,null,null,null,null,null,null,null,null,null,null,null,null,null,null,null,null,{"$f":"エントリーデータ!C23&エントリーデータ!D23","v":""},0]
[17,17,0,null,null,null,null,null,null,null,null,null,null,null,null,null,null,null,null,{"$f":"エントリーデータ!C24&エントリーデータ!D24","v":""},0]
[18,18,0,null,null,null,null,null,null,null,null,null,null,null,null,null,null,null,null,{"$f":"エントリーデータ!C25&エントリーデータ!D25","v":""},0]
[19,19,0,null,null,null,null,null,null,null,null,null,null,null,null,null,null,null,null,{"$f":"エントリーデータ!C26&エントリーデータ!D26","v":""},0]
[20,20,0,null,null,null,null,null,null,null,null,null,null,null,null,null,null,null,null,{"$f":"エントリーデータ!C27&エントリーデータ!D27","v":""},0]
[21,21,0,null,null,null,null,null,null,null,null,null,null,null,null,null,null,null,null,{"$f":"エントリーデータ!C28&エントリーデータ!D28","v":""},0]
[22,22,0,null,null,null,null,null,null,null,null,null,null,null,null,null,null,null,null,{"$f":"エントリーデータ!C29&エントリーデータ!D29","v":""},0]
[23,23,0,null,null,null,null,null,null,null,null,null,null,null,null,null,null,null,null,{"$f":"エントリーデータ!C30&エントリーデータ!D30","v":""},0]
[24,24,0,null,null,null,null,null,null,null,null,null,null,null,null,null,null,null,null,{"$f":"エントリーデータ!C31&エントリーデータ!D31","v":""},0]
[25,25,0,null,null,null,null,null,null,null,null,null,null,null,null,null,null,null,null,{"$f":"エントリーデータ!C32&エントリーデータ!D32","v":""},0]
[26,26,0,null,null,null,null,null,null,null,null,null,null,null,null,null,null,null,null,{"$f":"エントリーデータ!C33&エントリーデータ!D33","v":""},0]
[27,27,0,null,null,null,null,null,null,null,null,null,null,null,null,null,null,null,null,{"$f":"エントリーデータ!C34&エントリーデータ!D34","v":""},0]
[28,28,0,null,null,null,null,null,null,null,null,null,null,null,null,null,null,null,null,{"$f":"エントリーデータ!C35&エントリーデータ!D35","v":""},0]
[29,29,0,null,null,null,null,null,null,null,null,null,null,null,null,null,null,null,null,{"$f":"エントリーデータ!C36&エントリーデータ!D36","v":""},0]
[30,30,0,null,null,null,null,null,null,null,null,null,null,null,null,null,null,null,null,{"$f":"エントリーデータ!C37&エントリーデータ!D37","v":""},0]
[null,31,{"$f":"IF(A38<=$N$4,$M$4,IF(AND(A38>$N$4,A38<=$N$4+$N$5),$M$5,0))","v":3},null,null,null,null,null,null,null,null,null,null,null,null,null,null,null,null,{"$f":"エントリーデータ!C38&エントリーデータ!D38","v":""},0]
[null,32,3,null,null,null,null,null,null,null,null,null,null,null,null,null,null,null,null,{"$f":"エントリーデータ!C39&エントリーデータ!D39","v":""},{"$f":"IF(T39=\"\",0,COUNTIF($T$2:$T$38,T39))","v":0}]
[null,33,3,null,null,null,null,null,null,null,null,null,null,null,null,null,null,null,null,{"$f":"エントリーデータ!C40&エントリーデータ!D40","v":""},0]
[null,34,3,null,null,null,null,null,null,null,null,null,null,null,null,null,null,null,null,{"$f":"エントリーデータ!C41&エントリーデータ!D41","v":""},0]
[null,35,3,null,null,null,null,null,null,null,null,null,null,null,null,null,null,null,null,{"$f":"エントリーデータ!C42&エントリーデータ!D42","v":""},0]
[null,36,3,null,null,null,null,null,null,null,null,null,null,null,null,null,null,null,null,{"$f":"エントリーデータ!C43&エントリーデータ!D43","v":""},0]
[null,37,3,null,null,null,null,null,null,null,null,null,null,null,null,null,null,null,null,{"$f":"エントリーデータ!C44&エントリーデータ!D44","v":""},0]
[null,38,3,null,null,null,null,null,null,null,null,null,null,null,null,null,null,null,null,{"$f":"エントリーデータ!C45&エントリーデータ!D45","v":""},0]
[null,39,3,null,null,null,null,null,null,null,null,null,null,null,null,null,null,null,null,{"$f":"エントリーデータ!C46&エントリーデータ!D46","v":""},0]
[null,40,3,null,null,null,null,null,null,null,null,null,null,null,null,null,null,null,null,{"$f":"エントリーデータ!C47&エントリーデータ!D47","v":""},0]
[null,41,3,null,null,null,null,null,null,null,null,null,null,null,null,null,null,null,null,{"$f":"エントリーデータ!C48&エントリーデータ!D48","v":""},0]
[null,42,3,null,null,null,null,null,null,null,null,null,null,null,null,null,null,null,null,{"$f":"エントリーデータ!C49&エントリーデータ!D49","v":""},0]
[null,43,3,null,null,null,null,null,null,null,null,null,null,null,null,null,null,null,null,{"$f":"エントリーデータ!C50&エントリーデータ!D50","v":""},0]
[null,44,3,null,null,null,null,null,null,null,null,null,null,null,null,null,null,null,null,{"$f":"エントリーデータ!C51&エントリーデータ!D51","v":""},0]
[null,45,3,null,null,null,null,null,null,null,null,null,null,null,null,null,null,null,null,{"$f":"エントリーデータ!C52&エントリーデータ!D52","v":""},0]
[null,46,3,null,null,null,null,null,null,null,null,null,null,null,null,null,null,null,null,{"$f":"エントリーデータ!C53&エントリーデータ!D53","v":""},0]
[null,47,3,null,null,null,null,null,null,null,null,null,null,null,null,null,null,null,null,{"$f":"エントリーデータ!C54&エントリーデータ!D54","v":""},0]
[null,48,3,null,null,null,null,null,null,null,null,null,null,null,null,null,null,null,null,{"$f":"エントリーデータ!C55&エントリーデータ!D55","v":""},0]
[null,49,3,null,null,null,null,null,null,null,null,null,null,null,null,null,null,null,null,{"$f":"エントリーデータ!C56&エントリーデータ!D56","v":""},0]
[null,50,3,null,null,null,null,null,null,null,null,null,null,null,null,null,null,null,null,{"$f":"エントリーデータ!C57&エントリーデータ!D57","v":""},0]
[null,51,3,null,null,null,null,null,null,null,null,null,null,null,null,null,null,null,null,{"$f":"エントリーデータ!C58&エントリーデータ!D58","v":""},0]
[null,52,3,null,null,null,null,null,null,null,null,null,null,null,null,null,null,null,null,{"$f":"エントリーデータ!C59&エントリーデータ!D59","v":""},0]
[null,53,3,null,null,null,null,null,null,null,null,null,null,null,null,null,null,null,null,{"$f":"エントリーデータ!C60&エントリーデータ!D60","v":""},0]
[null,54,3,null,null,null,null,null,null,null,null,null,null,null,null,null,null,null,null,{"$f":"エントリーデータ!C61&エントリーデータ!D61","v":""},0]
[null,55,3,null,null,null,null,null,null,null,null,null,null,null,null,null,null,null,null,{"$f":"エントリーデータ!C62&エントリーデータ!D62","v":""},0]
[null,56,3,null,null,null,null,null,null,null,null,null,null,null,null,null,null,null,null,{"$f":"エントリーデータ!C63&エントリーデータ!D63","v":""},0]
[null,57,3,null,null,null,null,null,null,null,null,null,null,null,null,null,null,null,null,{"$f":"エントリーデータ!C64&エントリーデータ!D64","v":""},0]
[null,58,3,null,null,null,null,null,null,null,null,null,null,null,null,null,null,null,null,{"$f":"エントリーデータ!C65&エントリーデータ!D65","v":""},0]
[null,59,3,null,null,null,null,null,null,null,null,null,null,null,null,null,null,null,null,{"$f":"エントリーデータ!C66&エントリーデータ!D66","v":""},0]
[null,60,3,null,null,null,null,null,null,null,null,null,null,null,null,null,null,null,null,{"$f":"エントリーデータ!C67&エントリーデータ!D67","v":""},0]
[null,61,3,null,null,null,null,null,null,null,null,null,null,null,null,null,null,null,null,{"$f":"エントリーデータ!C68&エントリーデータ!D68","v":""},0]
[null,62,3,null,null,null,null,null,null,null,null,null,null,null,null,null,null,null,null,{"$f":"エントリーデータ!C69&エントリーデータ!D69","v":""},0]
[null,63,3,null,null,null,null,null,null,null,null,null,null,null,null,null,null,null,null,{"$f":"エントリーデータ!C70&エントリーデータ!D70","v":""},0]
[null,64,3,null,null,null,null,null,null,null,null,null,null,null,null,null,null,null,null,{"$f":"エントリーデータ!C71&エントリーデータ!D71","v":""},0]
[null,65,3,null,null,null,null,null,null,null,null,null,null,null,null,null,null,null,null,{"$f":"エントリーデータ!C72&エントリーデータ!D72","v":""},0]
[null,66,3,null,null,null,null,null,null,null,null,null,null,null,null,null,null,null,null,{"$f":"エントリーデータ!C73&エントリーデータ!D73","v":""},0]
[null,{"$f":"B73+1","v":67},3,null,null,null,null,null,null,null,null,null,null,null,null,null,null,null,null,{"$f":"エントリーデータ!C74&エントリーデータ!D74","v":""},0]
[null,68,3,null,null,null,null,null,null,null,null,null,null,null,null,null,null,null,null,{"$f":"エントリーデータ!C75&エントリーデータ!D75","v":""},0]
[null,69,3,null,null,null,null,null,null,null,null,null,null,null,null,null,null,null,null,{"$f":"エントリーデータ!C76&エントリーデータ!D76","v":""},0]
[null,70,3,null,null,null,null,null,null,null,null,null,null,null,null,null,null,null,null,{"$f":"エントリーデータ!C77&エントリーデータ!D77","v":""},0]
[null,71,3,null,null,null,null,null,null,null,null,null,null,null,null,null,null,null,null,{"$f":"エントリーデータ!C78&エントリーデータ!D78","v":""},0]
[null,72,3,null,null,null,null,null,null,null,null,null,null,null,null,null,null,null,null,{"$f":"エントリーデータ!C79&エントリーデータ!D79","v":""},0]
[null,73,3,null,null,null,null,null,null,null,null,null,null,null,null,null,null,null,null,{"$f":"エントリーデータ!C80&エントリーデータ!D80","v":""},0]
[null,74,3,null,null,null,null,null,null,null,null,null,null,null,null,null,null,null,null,{"$f":"エントリーデータ!C81&エントリーデータ!D81","v":""},0]
[null,75,3,null,null,null,null,null,null,null,null,null,null,null,null,null,null,null,null,{"$f":"エントリーデータ!C82&エントリーデータ!D82","v":""},0]
[null,76,3,null,null,null,null,null,null,null,null,null,null,null,null,null,null,null,null,{"$f":"エントリーデータ!C83&エントリーデータ!D83","v":""},0]
[null,77,3,null,null,null,null,null,null,null,null,null,null,null,null,null,null,null,null,{"$f":"エントリーデータ!C84&エントリーデータ!D84","v":""},0]
[null,78,3,null,null,null,null,null,null,null,null,null,null,null,null,null,null,null,null,{"$f":"エントリーデータ!C85&エントリーデータ!D85","v":""},0]
[null,79,3,null,null,null,null,null,null,null,null,null,null,null,null,null,null,null,null,{"$f":"エントリーデータ!C86&エントリーデータ!D86","v":""},0]
[null,80,3,null,null,null,null,null,null,null,null,null,null,null,null,null,null,null,null,{"$f":"エントリーデータ!C87&エントリーデータ!D87","v":""},0]
[null,81,{"$f":"IF(A88<=$N$4,$M$4,IF(AND(A88>$N$4,A88<=$N$4+$N$5),$M$5,0))","v":3},null,null,null,null,null,null,null,null,null,null,null,null,null,null,null,null,{"$f":"エントリーデータ!C88&エントリーデータ!D88","v":""},0]
[null,82,3,null,null,null,null,null,null,null,null,null,null,null,null,null,null,null,null,{"$f":"エントリーデータ!C89&エントリーデータ!D89","v":""},0]
[null,83,3,null,null,null,null,null,null,null,null,null,null,null,null,null,null,null,null,{"$f":"エントリーデータ!C90&エントリーデータ!D90","v":""},0]
[null,84,3,null,null,null,null,null,null,null,null,null,null,null,null,null,null,null,null,{"$f":"エントリーデータ!C91&エントリーデータ!D91","v":""},0]
[null,85,3,null,null,null,null,null,null,null,null,null,null,null,null,null,null,null,null,{"$f":"エントリーデータ!C92&エントリーデータ!D92","v":""},0]
[null,86,3,null,null,null,null,null,null,null,null,null,null,null,null,null,null,null,null,{"$f":"エントリーデータ!C93&エントリーデータ!D93","v":""},0]
[null,87,3,null,null,null,null,null,null,null,null,null,null,null,null,null,null,null,null,{"$f":"エントリーデータ!C94&エントリーデータ!D94","v":""},0]
[null,88,3,null,null,null,null,null,null,null,null,null,null,null,null,null,null,null,null,{"$f":"エントリーデータ!C95&エントリーデータ!D95","v":""},0]
[null,89,3,null,null,null,null,null,null,null,null,null,null,null,null,null,null,null,null,{"$f":"エントリーデータ!C96&エントリーデータ!D96","v":""},0]
[null,90,3,null,null,null,null,null,null,null,null,null,null,null,null,null,null,null,null,{"$f":"エントリーデータ!C97&エントリーデータ!D97","v":""},0]
[null,91,3,null,null,null,null,null,null,null,null,null,null,null,null,null,null,null,null,{"$f":"エントリーデータ!C98&エントリーデータ!D98","v":""},0]
[null,92,{"$f":"IF(A99<=$N$4,$M$4,IF(AND(A99>$N$4,A99<=$N$4+$N$5),$M$5,0))","v":3},null,null,null,null,null,null,null,null,null,null,null,null,null,null,null,null,{"$f":"エントリーデータ!C99&エントリーデータ!D99","v":""},0]
[null,93,3,null,null,null,null,null,null,null,null,null,null,null,null,null,null,null,null,{"$f":"エントリーデータ!C100&エントリーデータ!D100","v":""},0]
[null,94,3,null,null,null,null,null,null,null,null,null,null,null,null,null,null,null,null,{"$f":"エントリーデータ!C101&エントリーデータ!D101","v":""},0]
[null,95,3,null,null,null,null,null,null,null,null,null,null,null,null,null,null,null,null,{"$f":"エントリーデータ!C102&エントリーデータ!D102","v":""},0]
[null,96,3,null,null,null,null,null,null,null,null,null,null,null,null,null,null,null,null,{"$f":"エントリーデータ!C103&エントリーデータ!D103","v":""},{"$f":"IF(T103=\"\",0,COUNTIF($T$2:$T$38,T103))","v":0}]
[null,97,{"$f":"IF(A104<=$N$4,$M$4,IF(AND(A104>$N$4,A104<=$N$4+$N$5),$M$5,0))","v":3},null,null,null,null,null,null,null,null,null,null,null,null,null,null,null,null,{"$f":"エントリーデータ!C104&エントリーデータ!D104","v":""},0]
[null,98,3,null,null,null,null,null,null,null,null,null,null,null,null,null,null,null,null,{"$f":"エントリーデータ!C105&エントリーデータ!D105","v":""},0]
[null,99,3,null,null,null,null,null,null,null,null,null,null,null,null,null,null,null,null,{"$f":"エントリーデータ!C106&エントリーデータ!D106","v":""},0]
[null,100,3,null,null,null,null,null,null,null,null,null,null,null,null,null,null,null,null,{"$f":"エントリーデータ!C107&エントリーデータ!D107","v":""},0]

{"sheet":"エントリーデータ","index":1,"n_rows":17,"n_cols":5,"rows_kept":17,"cut":false,"hidden":false,"merged":[]}
["氏名","所属","的","立順","出欠"]
["oda1","team",1,"A",1]
["oda2","team",1,"B",1]
["oda3","team",1,"C",1]
["oda4","team",2,"A",1]
["oda5","team",2,"B",1]
["oda6","team",2,"C",1]
["oda7","team",3,"A",1]
["oda8","team",3,"B",1]
["oda9","team",3,"C",1]
["oda10","team",4,"A",1]
["oda11","team",4,"B",1]
["oda12","team",4,"C",1]
["oda13","team",5,"A",1]
["oda14","team",5,"B",1]
["oda15","team",6,"A",1]
["oda16","team",6,"B",1]